[Event "Late-Titled-Tuesday-Blitz-August-29-2023"]
[Site "Chess.com"]
[Date "2023.08.29"]
[Round "4"]
[White "lamomiajunior"]
[Black "OparinGrigoriy"]
[Result "1/2-1/2"]
[WhiteElo "2757"]
[BlackElo "2966"]
[TimeControl "180+1"]
[EndTime "14:39:30 PDT"]
[Termination "Game drawn by repetition"]

1. d4 {[%clk 0:03:00.9]} 1... Nf6 {[%clk 0:02:30.2]} 2. Nc3 {[%clk 0:03:00.7]}
2... e6 {[%clk 0:02:29.4]} 3. Bf4 {[%clk 0:03:00.5]} 3... Bb4 {[%clk 0:02:26.4]}
4. Qd3 {[%clk 0:03:00.7]} 4... c5 {[%clk 0:02:22.5]} 5. dxc5 {[%clk 0:02:58]}
5... Qa5 {[%clk 0:02:22.6]} 6. Nf3 {[%clk 0:02:52.2]} 6... Nd5 {[%clk
0:02:20.4]} 7. Bd2 {[%clk 0:02:51.8]} 7... Nxc3 {[%clk 0:02:20.7]} 8. bxc3
{[%clk 0:02:49.1]} 8... Bxc5 {[%clk 0:02:20.7]} 9. g3 {[%clk 0:02:43.1]} 9...
Qc7 {[%clk 0:02:17.8]} 10. Bg2 {[%clk 0:02:43.5]} 10... b6 {[%clk 0:02:16.3]}
11. O-O {[%clk 0:02:40.9]} 11... Bb7 {[%clk 0:02:16.8]} 12. Bf4 {[%clk
0:02:40.3]} 12... d6 {[%clk 0:02:14.7]} 13. Rad1 {[%clk 0:02:39.4]} 13... e5
{[%clk 0:02:08.6]} 14. Be3 {[%clk 0:02:39.8]} 14... Bxe3 {[%clk 0:02:05.3]} 15.
Qxe3 {[%clk 0:02:38]} 15... O-O {[%clk 0:02:05.3]} 16. Qd2 {[%clk 0:02:28.4]}
16... Rd8 {[%clk 0:01:47.1]} 17. Nxe5 {[%clk 0:02:21.1]} 17... Bxg2 {[%clk
0:01:48]} 18. Kxg2 {[%clk 0:02:21.6]} 18... Nc6 {[%clk 0:01:48.6]} 19. Nf3
{[%clk 0:02:02.1]} 19... Rac8 {[%clk 0:01:48.4]} 20. Qf4 {[%clk 0:01:56.8]}
20... Ne5 {[%clk 0:01:44.2]} 21. Nxe5 {[%clk 0:01:38.2]} 21... dxe5 {[%clk
0:01:45.1]} 22. Qe3 {[%clk 0:01:38.7]} 22... h6 {[%clk 0:01:42.4]} 23. h4 {[%clk
0:01:36.8]} 23... f6 {[%clk 0:01:30.4]} 24. a4 {[%clk 0:01:19.8]} 24... Qc6+
{[%clk 0:01:27.7]} 25. Qf3 {[%clk 0:01:10.2]} 25... Qxa4 {[%clk 0:01:26.8]} 26.
Qb7 {[%clk 0:01:01.6]} 26... Kh7 {[%clk 0:01:12.9]} 27. Ra1 {[%clk 0:00:54.9]}
27... Qc6+ {[%clk 0:01:07.9]} 28. Qxc6 {[%clk 0:00:54.8]} 28... Rxc6 {[%clk
0:01:08.8]} 29. Rxa7 {[%clk 0:00:54.4]} 29... Rxc3 {[%clk 0:01:09.2]} 30. Rb1
{[%clk 0:00:45.2]} 30... Rd6 {[%clk 0:01:04.9]} 31. Rb2 {[%clk 0:00:37.5]} 31...
Rdc6 {[%clk 0:01:04.9]} 32. Rb7 {[%clk 0:00:33.2]} 32... Rxc2 {[%clk 0:01:04.2]}
33. R7xb6 {[%clk 0:00:33.8]} 33... h5 {[%clk 0:00:59.9]} 34. Rxc6 {[%clk
0:00:31.2]} 34... Rxb2 {[%clk 0:00:59.8]} 35. Kf3 {[%clk 0:00:30.4]} 35... Kg6
{[%clk 0:01:00.3]} 36. Rc7 {[%clk 0:00:26.7]} 36... Rb3+ {[%clk 0:00:59.9]} 37.
e3 {[%clk 0:00:27.1]} 37... Rb4 {[%clk 0:01:00.3]} 38. Rd7 {[%clk 0:00:27.1]}
38... Rb2 {[%clk 0:01:00]} 39. Rc7 {[%clk 0:00:27.6]} 39... Kh6 {[%clk
0:00:56.4]} 40. Rd7 {[%clk 0:00:28]} 40... g5 {[%clk 0:00:53.1]} 41. hxg5+
{[%clk 0:00:28.5]} 41... Kxg5 {[%clk 0:00:53.6]} 42. Rg7+ {[%clk 0:00:28.7]}
42... Kf5 {[%clk 0:00:53.6]} 43. Rh7 {[%clk 0:00:26.8]} 43... Kg6 {[%clk
0:00:54.1]} 44. Rh8 {[%clk 0:00:27.5]} 44... Rb4 {[%clk 0:00:53.7]} 45. Rg8+
{[%clk 0:00:27.7]} 45... Kf7 {[%clk 0:00:54.3]} 46. Rh8 {[%clk 0:00:27.9]} 46...
Kg6 {[%clk 0:00:54.6]} 47. Rg8+ {[%clk 0:00:28.3]} 47... Kh7 {[%clk 0:00:55.4]}
48. Rf8 {[%clk 0:00:28]} 48... Kg7 {[%clk 0:00:56]} 49. Rd8 {[%clk 0:00:28.5]}
49... h4 {[%clk 0:00:55.9]} 50. gxh4 {[%clk 0:00:28.7]} 50... Rxh4 {[%clk
0:00:56.8]} 51. Rd7+ {[%clk 0:00:29.3]} 51... Kg6 {[%clk 0:00:56.8]} 52. Rd8
{[%clk 0:00:30.1]} 52... Kf5 {[%clk 0:00:56.8]} 53. Rg8 {[%clk 0:00:29.6]} 53...
Rh3+ {[%clk 0:00:57.1]} 54. Ke2 {[%clk 0:00:25.9]} 54... Ke4 {[%clk 0:00:55.2]}
55. Rg4+ {[%clk 0:00:26]} 55... Kd5 {[%clk 0:00:55.5]} 56. Ra4 {[%clk
0:00:26.6]} 56... Rh1 {[%clk 0:00:52.6]} 57. Kf3 {[%clk 0:00:25.7]} 57... Rg1
{[%clk 0:00:51.3]} 58. Ra5+ {[%clk 0:00:25.6]} 58... Ke6 {[%clk 0:00:51.9]} 59.
Ke4 {[%clk 0:00:22.4]} 59... Rg4+ {[%clk 0:00:50.3]} 60. Kf3 {[%clk 0:00:22.6]}
60... Rb4 {[%clk 0:00:51.2]} 61. Ra6+ {[%clk 0:00:21.3]} 61... Kf5 {[%clk
0:00:51.5]} 62. Rc6 {[%clk 0:00:21.7]} 62... Kg5 {[%clk 0:00:50.9]} 63. Ra6
{[%clk 0:00:20.9]} 63... f5 {[%clk 0:00:51.1]} 64. Re6 {[%clk 0:00:20.8]} 64...
e4+ {[%clk 0:00:48.7]} 65. Kg3 {[%clk 0:00:20.8]} 65... Rb1 {[%clk 0:00:49]} 66.
Kg2 {[%clk 0:00:19.4]} 66... Rb8 {[%clk 0:00:46.8]} 67. Re7 {[%clk 0:00:19.5]}
67... Kf6 {[%clk 0:00:44.4]} 68. Rc7 {[%clk 0:00:18]} 68... Rg8+ {[%clk
0:00:45]} 69. Kf1 {[%clk 0:00:18.5]} 69... Kg5 {[%clk 0:00:44.7]} 70. Ke2 {[%clk
0:00:17.9]} 70... Kg4 {[%clk 0:00:44.5]} 71. Rf7 {[%clk 0:00:18.1]} 71... Rg6
{[%clk 0:00:44.4]} 72. Rf8 {[%clk 0:00:18]} 72... Kg5 {[%clk 0:00:44.8]} 73. Rf7
{[%clk 0:00:18.3]} 73... Ra6 {[%clk 0:00:44.8]} 74. Rg7+ {[%clk 0:00:16.6]}
74... Kf6 {[%clk 0:00:45.2]} 75. Rg8 {[%clk 0:00:17.1]} 75... Ra1 {[%clk
0:00:45.8]} 76. Rf8+ {[%clk 0:00:16.4]} 76... Ke6 {[%clk 0:00:46.5]} 77. Rg8
{[%clk 0:00:17]} 77... Kf7 {[%clk 0:00:46.7]} 78. Rg5 {[%clk 0:00:16.9]} 78...
Kf6 {[%clk 0:00:46.9]} 79. Rg8 {[%clk 0:00:17.6]} 79... Ra2+ {[%clk 0:00:46.8]}
80. Kf1 {[%clk 0:00:17.6]} 80... Ke5 {[%clk 0:00:47.3]} 81. Re8+ {[%clk
0:00:17.6]} 81... Kd5 {[%clk 0:00:47.2]} 82. Rf8 {[%clk 0:00:18.1]} 82... Ke6
{[%clk 0:00:47.8]} 83. Re8+ {[%clk 0:00:18.6]} 83... Kd7 {[%clk 0:00:47.9]} 84.
Rf8 {[%clk 0:00:18.9]} 84... Ra5 {[%clk 0:00:48.6]} 85. Kg2 {[%clk 0:00:18.9]}
85... Ke7 {[%clk 0:00:49.3]} 86. Rb8 {[%clk 0:00:18.9]} 86... Kf6 {[%clk
0:00:48.5]} 87. Rg8 {[%clk 0:00:18.8]} 87... Ra1 {[%clk 0:00:46.7]} 88. Rf8+
{[%clk 0:00:19.2]} 88... Ke6 {[%clk 0:00:46.5]} 89. Re8+ {[%clk 0:00:19.8]}
89... Kf7 {[%clk 0:00:47.1]} 90. Rb8 {[%clk 0:00:20]} 90... Kf6 {[%clk
0:00:47.4]} 91. Rf8+ {[%clk 0:00:20]} 91... Ke6 {[%clk 0:00:48]} 92. Re8+ {[%clk
0:00:20.1]} 92... Kf7 {[%clk 0:00:48.4]} 93. Rb8 {[%clk 0:00:20.5]} 93... Kf6
{[%clk 0:00:49.1]} 94. Rf8+ {[%clk 0:00:20.8]} 1/2-1/2

[Event "Late-Titled-Tuesday-Blitz-August-29-2023"]
[Site "Chess.com"]
[Date "2023.08.29"]
[Round "4"]
[White "Colombiano07"]
[Black "jk13"]
[Result "0-1"]
[WhiteElo "2440"]
[BlackElo "2673"]
[TimeControl "180+1"]
[EndTime "14:39:39 PDT"]
[Termination "jk13 won on time"]

1. d4 {[%clk 0:03:00.9]} 1... Nf6 {[%clk 0:02:57.9]} 2. c4 {[%clk 0:03:00.5]}
2... e6 {[%clk 0:02:58.4]} 3. Nc3 {[%clk 0:03:00.7]} 3... Bb4 {[%clk 0:02:59.1]}
4. e3 {[%clk 0:03:01.3]} 4... O-O {[%clk 0:02:59]} 5. Ne2 {[%clk 0:03:01.9]}
5... d5 {[%clk 0:02:59]} 6. a3 {[%clk 0:03:02.3]} 6... Be7 {[%clk 0:02:59.7]} 7.
cxd5 {[%clk 0:03:01.9]} 7... exd5 {[%clk 0:03:00.6]} 8. Nf4 {[%clk 0:03:02.5]}
8... Re8 {[%clk 0:03:00.5]} 9. Bd3 {[%clk 0:03:03.1]} 9... c6 {[%clk 0:02:52.3]}
10. O-O {[%clk 0:03:03.5]} 10... Nbd7 {[%clk 0:02:52.1]} 11. Bd2 {[%clk
0:03:01.8]} 11... Nb6 {[%clk 0:02:51]} 12. b4 {[%clk 0:02:59.8]} 12... Bf8
{[%clk 0:02:49.2]} 13. Qf3 {[%clk 0:02:59]} 13... Qe7 {[%clk 0:02:43.2]} 14.
Rab1 {[%clk 0:02:56.8]} 14... Ne4 {[%clk 0:02:43.5]} 15. Bxe4 {[%clk 0:02:56.2]}
15... dxe4 {[%clk 0:02:43.9]} 16. Qe2 {[%clk 0:02:53.4]} 16... Bf5 {[%clk
0:02:29.7]} 17. a4 {[%clk 0:02:49.3]} 17... Qd7 {[%clk 0:02:13.9]} 18. a5 {[%clk
0:02:46.4]} 18... Nd5 {[%clk 0:02:05.6]} 19. Nfxd5 {[%clk 0:02:43.1]} 19... cxd5
{[%clk 0:02:05.9]} 20. Qb5 {[%clk 0:02:39.8]} 20... Red8 {[%clk 0:01:40.4]} 21.
Qxd7 {[%clk 0:02:36.5]} 21... Rxd7 {[%clk 0:01:40.8]} 22. Rfc1 {[%clk
0:02:34.8]} 22... Rc8 {[%clk 0:01:22.5]} 23. Na4 {[%clk 0:02:32.9]} 23... Rdc7
{[%clk 0:01:19.7]} 24. Rxc7 {[%clk 0:02:31.9]} 24... Rxc7 {[%clk 0:01:20.6]} 25.
Nc5 {[%clk 0:02:32.2]} 25... b6 {[%clk 0:01:09.8]} 26. axb6 {[%clk 0:02:31.1]}
26... axb6 {[%clk 0:01:10.7]} 27. Na6 {[%clk 0:02:30.8]} 27... Rc2 {[%clk
0:01:10.4]} 28. Be1 {[%clk 0:02:30.3]} 28... Bg4 {[%clk 0:01:00.4]} 29. h3
{[%clk 0:02:25.4]} 29... Be2 {[%clk 0:01:00.5]} 30. b5 {[%clk 0:02:25.7]} 30...
Bd3 {[%clk 0:00:57.2]} 31. Bb4 {[%clk 0:02:14.9]} 31... Rxf2 {[%clk 0:00:34.5]}
32. Kxf2 {[%clk 0:02:12.3]} 32... Bxb1 {[%clk 0:00:34.4]} 33. Bxf8 {[%clk
0:02:12.1]} 33... Kxf8 {[%clk 0:00:35.3]} 34. Nc7 {[%clk 0:02:09.4]} 34... Ba2
{[%clk 0:00:34.8]} 35. Na8 {[%clk 0:02:08.4]} 35... Ke7 {[%clk 0:00:31.6]} 36.
Nxb6 {[%clk 0:02:09.3]} 36... Kd8 {[%clk 0:00:28.9]} 37. Kg3 {[%clk 0:01:56.9]}
37... Bb3 {[%clk 0:00:27.3]} 38. Kf4 {[%clk 0:01:56.2]} 38... Kc7 {[%clk
0:00:27.8]} 39. Na8+ {[%clk 0:01:13.2]} 39... Kb7 {[%clk 0:00:28.1]} 40. Ke5
{[%clk 0:01:12.1]} 40... Kxa8 {[%clk 0:00:28.8]} 41. Kd6 {[%clk 0:01:04.9]}
41... h5 {[%clk 0:00:25.7]} 42. Kc7 {[%clk 0:01:01.9]} 42... Bc4 {[%clk
0:00:23.7]} 43. b6 {[%clk 0:00:59.7]} 43... Ba6 {[%clk 0:00:24.3]} 44. h4 {[%clk
0:00:56.2]} 44... Bb7 {[%clk 0:00:21.5]} 45. g3 {[%clk 0:00:53.2]} 45... g6
{[%clk 0:00:17.4]} 46. Kd7 {[%clk 0:00:50.3]} 46... Kb8 {[%clk 0:00:16.9]} 47.
Ke7 {[%clk 0:00:48.9]} 47... Bc8 {[%clk 0:00:17.1]} 48. Kd6 {[%clk 0:00:44.4]}
48... Be6 {[%clk 0:00:16.2]} 49. Kc6 {[%clk 0:00:42.6]} 49... Kc8 {[%clk
0:00:12.7]} 50. Kb5 {[%clk 0:00:40.9]} 50... Kb7 {[%clk 0:00:12.9]} 51. Kc5
{[%clk 0:00:41.1]} 51... Bf5 {[%clk 0:00:11.2]} 52. Kxd5 {[%clk 0:00:38.8]}
52... Kxb6 {[%clk 0:00:11.3]} 53. Ke5 {[%clk 0:00:38.8]} 53... Kc6 {[%clk
0:00:11.5]} 54. Kf6 {[%clk 0:00:34.7]} 54... Be6 {[%clk 0:00:11]} 55. Ke5 {[%clk
0:00:34.6]} 55... Bd5 {[%clk 0:00:11]} 56. Kf4 {[%clk 0:00:29.5]} 56... Kd6
{[%clk 0:00:11]} 57. g4 {[%clk 0:00:27.1]} 57... hxg4 {[%clk 0:00:10.5]} 58.
Kxg4 {[%clk 0:00:28]} 58... Ke6 {[%clk 0:00:10.8]} 59. Kg5 {[%clk 0:00:25.3]}
59... Bc4 {[%clk 0:00:10.3]} 60. Kf4 {[%clk 0:00:22.1]} 60... f6 {[%clk
0:00:10.5]} 61. Kxe4 {[%clk 0:00:21]} 61... Bb3 {[%clk 0:00:07.9]} 62. Kf4
{[%clk 0:00:19]} 62... Kd5 {[%clk 0:00:06.7]} 63. Kf3 {[%clk 0:00:12.2]} 63...
Bc2 {[%clk 0:00:05.5]} 64. Kf4 {[%clk 0:00:12.4]} 64... Bd3 {[%clk 0:00:05.3]}
65. Kf3 {[%clk 0:00:12.5]} 65... Bc2 {[%clk 0:00:04.1]} 66. Kf4 {[%clk
0:00:12.9]} 66... Bd1 {[%clk 0:00:05]} 67. Kg3 {[%clk 0:00:04.6]} 67... Ke4
{[%clk 0:00:05.9]} 68. Kf2 {[%clk 0:00:04.6]} 68... Bg4 {[%clk 0:00:05.5]} 69.
Kg3 {[%clk 0:00:04.6]} 69... Bh5 {[%clk 0:00:06]} 70. Kf2 {[%clk 0:00:04.8]}
70... f5 {[%clk 0:00:06.1]} 0-1

[Event "Late-Titled-Tuesday-Blitz-August-29-2023"]
[Site "Chess.com"]
[Date "2023.08.29"]
[Round "4"]
[White "Tejas_Rama"]
[Black "fastestmindalive"]
[Result "1-0"]
[WhiteElo "2552"]
[BlackElo "2726"]
[TimeControl "180+1"]
[EndTime "14:39:44 PDT"]
[Termination "Tejas_Rama won by resignation"]

1. d4 {[%clk 0:03:00.9]} 1... Nf6 {[%clk 0:03:00.1]} 2. c4 {[%clk 0:03:00.8]}
2... e6 {[%clk 0:03:00.7]} 3. Nf3 {[%clk 0:03:01.1]} 3... Bb4+ {[%clk
0:02:59.8]} 4. Bd2 {[%clk 0:03:00.9]} 4... Qe7 {[%clk 0:03:00.1]} 5. e3 {[%clk
0:03:00.8]} 5... Nc6 {[%clk 0:02:59.7]} 6. Bd3 {[%clk 0:02:51.7]} 6... e5 {[%clk
0:02:59.5]} 7. dxe5 {[%clk 0:02:32.7]} 7... Nxe5 {[%clk 0:02:57.9]} 8. Nxe5
{[%clk 0:02:25.3]} 8... Bxd2+ {[%clk 0:02:57.9]} 9. Qxd2 {[%clk 0:02:24.1]} 9...
Qxe5 {[%clk 0:02:58.8]} 10. Nc3 {[%clk 0:02:20]} 10... O-O {[%clk 0:02:54.5]}
11. Bc2 {[%clk 0:02:08.4]} 11... b6 {[%clk 0:02:29.8]} 12. O-O-O {[%clk
0:01:41.8]} 12... Ba6 {[%clk 0:02:27.9]} 13. b3 {[%clk 0:01:29.7]} 13... b5
{[%clk 0:02:20.8]} 14. cxb5 {[%clk 0:01:21.4]} 14... Bxb5 {[%clk 0:02:21.7]} 15.
f4 {[%clk 0:01:13.9]} 15... Qc5 {[%clk 0:02:18.9]} 16. Nxb5 {[%clk 0:01:11.3]}
16... Qxb5 {[%clk 0:02:18.6]} 17. e4 {[%clk 0:01:11.2]} 17... d6 {[%clk
0:02:15.7]} 18. Rhe1 {[%clk 0:01:08.6]} 18... Rfe8 {[%clk 0:02:14]} 19. Kb1
{[%clk 0:01:02.9]} 19... a5 {[%clk 0:02:14]} 20. Ka1 {[%clk 0:00:59.4]} 20... a4
{[%clk 0:02:13]} 21. bxa4 {[%clk 0:00:58.6]} 21... Qc5 {[%clk 0:02:13.1]} 22.
Rc1 {[%clk 0:00:32.2]} 22... Kh8 {[%clk 0:02:12.8]} 23. Bb3 {[%clk 0:00:30.7]}
23... Qh5 {[%clk 0:01:56.5]} 24. e5 {[%clk 0:00:26.2]} 24... dxe5 {[%clk
0:01:55.3]} 25. fxe5 {[%clk 0:00:26]} 25... Rxe5 {[%clk 0:01:54.9]} 26. Bxf7
{[%clk 0:00:23.2]} 26... Qf5 {[%clk 0:01:46.7]} 27. Rxe5 {[%clk 0:00:17.8]}
27... Qxe5+ {[%clk 0:01:47.6]} 28. Qc3 {[%clk 0:00:17.7]} 28... Qg5 {[%clk
0:01:25.1]} 29. Qxc7 {[%clk 0:00:16.7]} 29... h5 {[%clk 0:01:23.1]} 30. g3
{[%clk 0:00:13.3]} 30... Rxa4 {[%clk 0:01:12.6]} 31. Qc8+ {[%clk 0:00:11]} 31...
Kh7 {[%clk 0:01:13]} 32. Qc2+ {[%clk 0:00:11.6]} 32... Ne4 {[%clk 0:01:08.2]}
33. Qb2 {[%clk 0:00:05.7]} 33... Rb4 {[%clk 0:01:03.7]} 34. Bb3 {[%clk
0:00:06.3]} 34... Nd2 {[%clk 0:00:59.7]} 35. Rd1 {[%clk 0:00:04.5]} 35... Nxb3+
{[%clk 0:00:45.6]} 36. axb3 {[%clk 0:00:05.4]} 36... Re4 {[%clk 0:00:39]} 37.
Qc2 {[%clk 0:00:05.1]} 37... Qg6 {[%clk 0:00:37]} 38. Kb2 {[%clk 0:00:05.5]}
38... Qf6+ {[%clk 0:00:34]} 39. Kb1 {[%clk 0:00:05.1]} 39... Qf5 {[%clk
0:00:31.1]} 40. Rd4 {[%clk 0:00:03.1]} 40... Re1+ {[%clk 0:00:05.4]} 41. Kb2
{[%clk 0:00:03.7]} 41... Qg6 {[%clk 0:00:02.5]} 42. Qxg6+ {[%clk 0:00:02.8]}
42... Kxg6 {[%clk 0:00:03.4]} 43. Rd2 {[%clk 0:00:03]} 43... Kg5 {[%clk
0:00:02.8]} 44. Kc3 {[%clk 0:00:03.6]} 44... Re3+ {[%clk 0:00:02.7]} 45. Rd3
{[%clk 0:00:03.2]} 45... Re2 {[%clk 0:00:03]} 46. Rd2 {[%clk 0:00:03.8]} 46...
Re1 {[%clk 0:00:03.5]} 47. Kc4 {[%clk 0:00:04.2]} 47... Rb1 {[%clk 0:00:03.3]}
48. b4 {[%clk 0:00:03.9]} 48... Kg4 {[%clk 0:00:03.8]} 49. b5 {[%clk 0:00:02.8]}
49... Kh3 {[%clk 0:00:03.8]} 50. Kc5 {[%clk 0:00:03.1]} 50... g5 {[%clk
0:00:04.3]} 51. b6 {[%clk 0:00:02.8]} 51... g4 {[%clk 0:00:03.5]} 52. Kc6 {[%clk
0:00:03.2]} 52... Rc1+ {[%clk 0:00:03.8]} 53. Kb7 {[%clk 0:00:03.2]} 53... Rb1
{[%clk 0:00:04.4]} 54. Ka7 {[%clk 0:00:03.8]} 54... h4 {[%clk 0:00:04.5]} 55.
gxh4 {[%clk 0:00:03]} 55... Kxh4 {[%clk 0:00:05.2]} 56. b7 {[%clk 0:00:03.7]}
56... Ra1+ {[%clk 0:00:05.7]} 57. Kb8 {[%clk 0:00:04.2]} 57... Rb1 {[%clk
0:00:06.2]} 58. Rc2 {[%clk 0:00:03.9]} 58... Rf1 {[%clk 0:00:04.5]} 59. Kc8
{[%clk 0:00:04]} 59... Rf8+ {[%clk 0:00:04.3]} 60. Kc7 {[%clk 0:00:04.6]} 60...
Rf7+ {[%clk 0:00:04.5]} 61. Kb6 {[%clk 0:00:05.3]} 61... Rf6+ {[%clk 0:00:04.1]}
62. Ka7 {[%clk 0:00:05.8]} 62... Rf7 {[%clk 0:00:03.7]} 63. Ka8 {[%clk
0:00:06.5]} 63... Rf1 {[%clk 0:00:02.8]} 64. b8=Q {[%clk 0:00:06.8]} 64... Ra1+
{[%clk 0:00:03.5]} 65. Kb7 {[%clk 0:00:07.3]} 65... Rb1+ {[%clk 0:00:03.8]} 66.
Kc7 {[%clk 0:00:08]} 66... Rf1 {[%clk 0:00:04.3]} 67. Qh8+ {[%clk 0:00:07.4]}
67... Kg5 {[%clk 0:00:04.3]} 68. Qg7+ {[%clk 0:00:08]} 68... Kh5 {[%clk
0:00:03.9]} 69. Rc5+ {[%clk 0:00:07.1]} 1-0

[Event "Late-Titled-Tuesday-Blitz-August-29-2023"]
[Site "Chess.com"]
[Date "2023.08.29"]
[Round "4"]
[White "Andrei_Skvortsov"]
[Black "Fleetw00dMac"]
[Result "0-1"]
[WhiteElo "2658"]
[BlackElo "2479"]
[TimeControl "180+1"]
[EndTime "14:39:49 PDT"]
[Termination "Fleetw00dMac won by resignation"]

1. e4 {[%clk 0:03:00.9]} 1... e5 {[%clk 0:02:59.1]} 2. d4 {[%clk 0:02:59.9]}
2... exd4 {[%clk 0:02:57.9]} 3. Qxd4 {[%clk 0:03:00.8]} 3... Nc6 {[%clk
0:02:57.1]} 4. Qd3 {[%clk 0:03:00]} 4... Nf6 {[%clk 0:02:54.3]} 5. Nc3 {[%clk
0:02:57.5]} 5... Bb4 {[%clk 0:02:52.1]} 6. Bd2 {[%clk 0:02:57.1]} 6... O-O
{[%clk 0:02:51.4]} 7. O-O-O {[%clk 0:02:57.1]} 7... Re8 {[%clk 0:02:51.3]} 8.
Nge2 {[%clk 0:02:56.8]} 8... d6 {[%clk 0:02:48.9]} 9. Bg5 {[%clk 0:02:55.7]}
9... h6 {[%clk 0:02:41.1]} 10. Bh4 {[%clk 0:02:55.4]} 10... Ne5 {[%clk
0:02:40.8]} 11. Qd2 {[%clk 0:02:29.3]} 11... Ng6 {[%clk 0:02:38.9]} 12. Bxf6
{[%clk 0:02:27.5]} 12... Qxf6 {[%clk 0:02:37.3]} 13. Qd4 {[%clk 0:02:26.2]}
13... Qxd4 {[%clk 0:02:33.8]} 14. Rxd4 {[%clk 0:02:23.1]} 14... Bc5 {[%clk
0:02:33.7]} 15. Rd1 {[%clk 0:02:02.8]} 15... Bxf2 {[%clk 0:02:32]} 16. Nd5
{[%clk 0:01:55]} 16... Bb6 {[%clk 0:02:31.4]} 17. Nec3 {[%clk 0:01:51]} 17...
Be6 {[%clk 0:02:21.2]} 18. Nxb6 {[%clk 0:01:46.2]} 18... axb6 {[%clk 0:02:20.4]}
19. a3 {[%clk 0:01:45.2]} 19... Ne5 {[%clk 0:02:09.2]} 20. Be2 {[%clk
0:01:43.3]} 20... Bd7 {[%clk 0:02:01.5]} 21. Nd5 {[%clk 0:01:42.9]} 21... Rac8
{[%clk 0:02:01.6]} 22. h3 {[%clk 0:01:36.2]} 22... Bc6 {[%clk 0:02:01.3]} 23.
Nc3 {[%clk 0:01:34.1]} 23... Re7 {[%clk 0:01:56.4]} 24. Rhf1 {[%clk 0:01:32.5]}
24... Rce8 {[%clk 0:01:55.1]} 25. Rd4 {[%clk 0:01:29]} 25... g6 {[%clk
0:01:52.6]} 26. b4 {[%clk 0:01:26.4]} 26... Ra8 {[%clk 0:01:44.1]} 27. Kb2
{[%clk 0:01:24.4]} 27... Kg7 {[%clk 0:01:43.9]} 28. Rdd1 {[%clk 0:01:15]} 28...
Ree8 {[%clk 0:01:35.6]} 29. h4 {[%clk 0:01:12.7]} 29... h5 {[%clk 0:01:34.9]}
30. g3 {[%clk 0:01:12]} 30... Bd7 {[%clk 0:01:29.3]} 31. Rf4 {[%clk 0:01:11.7]}
31... Be6 {[%clk 0:01:28]} 32. Rdf1 {[%clk 0:01:08.4]} 32... c6 {[%clk
0:01:20.9]} 33. Rd1 {[%clk 0:01:07.5]} 33... Red8 {[%clk 0:01:19]} 34. Rff1
{[%clk 0:00:53]} 34... b5 {[%clk 0:01:18.7]} 35. Rd4 {[%clk 0:00:51.2]} 35...
Kf8 {[%clk 0:01:18]} 36. Rdd1 {[%clk 0:00:48.9]} 36... Ke7 {[%clk 0:01:17.7]}
37. Rf2 {[%clk 0:00:42.7]} 37... Bc4 {[%clk 0:01:16.9]} 38. Bf3 {[%clk
0:00:41.4]} 38... Be6 {[%clk 0:01:13.2]} 39. Be2 {[%clk 0:00:41.2]} 39... Bg4
{[%clk 0:01:12.6]} 40. Ra1 {[%clk 0:00:33.1]} 40... Be6 {[%clk 0:01:05.3]} 41.
Rf4 {[%clk 0:00:29.3]} 41... Rf8 {[%clk 0:01:05]} 42. Rff1 {[%clk 0:00:24.8]}
42... f5 {[%clk 0:01:04.3]} 43. exf5 {[%clk 0:00:24]} 43... Bxf5 {[%clk
0:01:03.1]} 44. Rf4 {[%clk 0:00:22.6]} 44... d5 {[%clk 0:01:02.6]} 45. Raf1
{[%clk 0:00:20.9]} 45... Rh8 {[%clk 0:00:58.5]} 46. Re1 {[%clk 0:00:18.1]} 46...
Kd6 {[%clk 0:00:58]} 47. Rff1 {[%clk 0:00:17]} 47... Rae8 {[%clk 0:00:56.1]} 48.
Nd1 {[%clk 0:00:16.7]} 48... Rhf8 {[%clk 0:00:51.7]} 49. Ne3 {[%clk 0:00:14.8]}
49... Bh3 {[%clk 0:00:51.6]} 50. Rxf8 {[%clk 0:00:14.6]} 50... Rxf8 {[%clk
0:00:51.9]} 51. Kc3 {[%clk 0:00:14.5]} 51... Rf2 {[%clk 0:00:51.1]} 52. Kd2
{[%clk 0:00:13.4]} 52... Nf3+ {[%clk 0:00:47.3]} 53. Kd1 {[%clk 0:00:11.6]}
53... Nxe1 {[%clk 0:00:47.3]} 54. Kxe1 {[%clk 0:00:12.5]} 54... Rf8 {[%clk
0:00:46.6]} 55. c3 {[%clk 0:00:12.9]} 55... Ra8 {[%clk 0:00:46.1]} 56. Nc2
{[%clk 0:00:13.2]} 56... Bf5 {[%clk 0:00:46.3]} 57. Nd4 {[%clk 0:00:13.8]} 57...
Rxa3 {[%clk 0:00:45.8]} 58. Kd2 {[%clk 0:00:13.8]} 58... Ra2+ {[%clk 0:00:46.2]}
59. Ke3 {[%clk 0:00:12.3]} 59... Be4 {[%clk 0:00:44.7]} 60. g4 {[%clk
0:00:10.9]} 60... hxg4 {[%clk 0:00:43.6]} 61. Bxg4 {[%clk 0:00:11.6]} 61... Rh2
{[%clk 0:00:43.5]} 62. Bc8 {[%clk 0:00:10.3]} 62... Rxh4 {[%clk 0:00:42.2]} 63.
Bxb7 {[%clk 0:00:10.1]} 63... Rh3+ {[%clk 0:00:42.5]} 64. Kd2 {[%clk 0:00:06.9]}
64... Rd3+ {[%clk 0:00:42.6]} 65. Ke2 {[%clk 0:00:07.4]} 65... Rxc3 {[%clk
0:00:42.9]} 66. Bc8 {[%clk 0:00:07.6]} 66... Rc4 {[%clk 0:00:42.6]} 67. Nb3
{[%clk 0:00:06.9]} 67... Rxb4 {[%clk 0:00:42]} 68. Na5 {[%clk 0:00:07.5]} 68...
c5 {[%clk 0:00:39.5]} 69. Ke3 {[%clk 0:00:05.9]} 69... g5 {[%clk 0:00:38.8]} 70.
Bh3 {[%clk 0:00:05.3]} 70... Ra4 {[%clk 0:00:38.8]} 71. Nb7+ {[%clk 0:00:05.4]}
71... Kc6 {[%clk 0:00:38.7]} 72. Nd8+ {[%clk 0:00:05.2]} 72... Kc7 {[%clk
0:00:37.2]} 73. Ne6+ {[%clk 0:00:05.2]} 73... Kd6 {[%clk 0:00:37.3]} 74. Nxg5
{[%clk 0:00:05.9]} 74... Ra3+ {[%clk 0:00:36.7]} 75. Kf4 {[%clk 0:00:06.3]}
75... b4 {[%clk 0:00:32.2]} 76. Be6 {[%clk 0:00:05.4]} 76... Bh1 {[%clk
0:00:31.4]} 77. Kf5 {[%clk 0:00:03.3]} 77... b3 {[%clk 0:00:30.8]} 78. Nf7+
{[%clk 0:00:03.9]} 78... Kc7 {[%clk 0:00:29.6]} 79. Ke5 {[%clk 0:00:03.5]} 79...
b2 {[%clk 0:00:29.8]} 80. Bf5 {[%clk 0:00:04.1]} 80... Be4 {[%clk 0:00:27.4]}
81. Nd6 {[%clk 0:00:04.8]} 81... b1=Q {[%clk 0:00:25.7]} 0-1